bitfinex/quotes_BTCUSD_20250119
["timestamp","ask_amount","ask_price","bid_price","bid_amount"]
[1737321748275,0.64964072,105700.0,105690.0,0.0002]
[1737321749136,0.70103601,105700.0,105690.0,0.0002]
[1737321749341,0.79564301,105700.0,105690.0,0.0002]
[1737321749895,0.86383424,105700.0,105690.0,0.0002]
[1737321750093,0.95834773,105700.0,105690.0,0.0002]
[1737321751375,0.95834773,105700.0,105690.0,0.00315953]
[1737321752104,0.78967495,105700.0,105690.0,0.00315953]
[1737321752520,0.88967495,105700.0,105690.0,0.00315953]
[1737321752729,0.78967495,105700.0,105690.0,0.0002]
[1737321753169,0.88967495,105700.0,105690.0,0.0002]
[1737321753796,0.78967495,105700.0,105690.0,0.0002]
[1737321754039,0.95831264,105700.0,105690.0,0.0002]
[1737321754450,1.05831264,105700.0,105690.0,0.0002]
[1737321754650,0.74159915,105700.0,105690.0,0.0002]
[1737321755122,0.71859915,105700.0,105690.0,0.00315954]
[1737321755625,0.71859915,105700.0,105690.0,0.09777554]
[1737321755859,0.56859915,105700.0,105690.0,0.12322024]
[1737321756342,0.4229386,105700.0,105690.0,0.02860424]
[1737321756833,0.4229386,105700.0,105690.0,0.12322024]
[1737321757072,0.4229386,105700.0,105690.0,0.12364874]
[1737321757338,0.42383846,105700.0,105690.0,0.12364874]
[1737321757859,0.42383846,105700.0,105690.0,0.02903274]
[1737321758921,0.41833846,105700.0,105690.0,0.02903274]
[1737321759167,0.41833846,105700.0,105690.0,0.12364874]
[1737321760480,0.41833846,105700.0,105690.0,0.02903274]
[1737321761225,0.41833846,105700.0,105690.0,0.12364874]
[1737321761711,0.32373146,105700.0,105690.0,0.12364874]
[1737321762362,0.21171797,105700.0,105690.0,0.29383504]
[1737321762805,0.21171797,105700.0,105690.0,0.35547497]
[1737321762988,0.21171797,105700.0,105690.0,0.40317497]
[1737321763192,0.08365795,105700.0,105690.0,0.70317497]
[1737321763333,0.08365795,105700.0,105690.0,0.70021543]
[1737321763874,0.07865795,105700.0,105690.0,0.70021543]
[1737321764115,0.00089986,105700.0,105690.0,0.70021543]
[1737321764491,0.00089986,105700.0,105690.0,0.6385755]
[1737321764664,0.11841335,105700.0,105690.0,0.2184445]
[1737321765073,0.21302035,105700.0,105690.0,0.1707445]
[1737321765243,0.21302035,105700.0,105690.0,0.0260732]
[1737321765446,0.21302035,105700.0,105690.0,0.1206892]
[1737321765648,0.21302035,105700.0,105690.0,0.0260732]
[1737321765891,0.21302035,105700.0,105690.0,0.1206892]
[1737321766107,0.21302035,105700.0,105690.0,0.0260732]
[1737321766251,0.21302035,105700.0,105690.0,0.12364832]
[1737321767430,0.21420301,105700.0,105690.0,0.00358762]
[1737321767874,0.36420301,105700.0,105690.0,0.00358762]
[1737321768100,0.36302035,105700.0,105690.0,0.00358762]
[1737321768337,0.40862035,105700.0,105690.0,0.00358762]
[1737321768569,0.49112035,105700.0,105690.0,0.00358762]
[1737321768803,0.9807624,105700.0,105690.0,0.00358762]
[1737321769308,0.89376891,105700.0,105690.0,0.00358762]
[1737321770031,1.10267431,105700.0,105690.0,0.00358762]
[1737321770734,1.10267431,105700.0,105690.0,0.0006285]
[1737321771348,1.34232561,105700.0,105690.0,0.0006285]
[1737321771554,1.21777031,105700.0,105690.0,0.0006285]
[1737321771754,0.2245553,105690.0,105680.0,0.01276136]
[1737321771968,0.56428479,105690.0,105680.0,0.01276136]
[1737321774010,0.81668385,105690.0,105680.0,0.01276136]
[1737321774226,0.69212855,105690.0,105680.0,0.01276136]
[1737321774400,0.81668385,105690.0,105680.0,0.01276136]
[1737321775211,0.85286179,105690.0,105680.0,0.01276136]
[1737321775828,0.86349759,105690.0,105680.0,0.01276136]
[1737321776028,1.06349759,105690.0,105680.0,0.01276136]
[1737321776747,0.93894229,105690.0,105680.0,0.01276136]
[1737321776950,1.06349759,105690.0,105680.0,0.01276136]
[1737321778368,0.094634,105670.0,105660.0,0.00338845]
[1737321778607,0.34093066,105670.0,105660.0,0.00338845]
[1737321778843,0.33974749,105670.0,105660.0,0.00338845]
[1737321779661,0.43475922,105670.0,105660.0,0.0004283]
[1737321780149,0.34024573,105670.0,105660.0,0.0004283]
[1737321780404,0.55042956,105670.0,105660.0,0.0004283]
[1737321781115,0.42282956,105670.0,105660.0,0.0004283]
[1737321782637,0.43343747,105670.0,105660.0,0.0004283]
[1737321782818,0.30732717,105670.0,105660.0,0.0004283]
[1737321783232,0.31484717,105670.0,105660.0,0.0004283]
[1737321784046,0.46843349,105670.0,105660.0,0.0004283]
[1737321784422,0.46091349,105670.0,105660.0,0.0004283]
[1737321784629,0.46843349,105670.0,105660.0,0.0004283]
[1737321784928,0.44095747,105670.0,105660.0,0.0004283]
[1737321785127,0.48615747,105670.0,105660.0,0.0004283]
[1737321785332,0.36004717,105670.0,105660.0,0.0004283]
[1737321785768,0.61004717,105670.0,105660.0,0.0004283]
[1737321785971,0.69014717,105670.0,105660.0,0.0004283]
[1737321786173,0.78466066,105670.0,105660.0,0.0004283]
[1737321786780,0.117643,105660.0,105650.0,0.02883365]
[1737321786998,0.21333975,105660.0,105650.0,0.02883365]
[1737321787143,0.21333975,105660.0,105650.0,0.00338895]
[1737321787351,0.36333975,105660.0,105650.0,0.00338895]
[1737321787553,0.36215649,105660.0,105650.0,0.00338895]
[1737321788009,0.36215649,105660.0,105650.0,0.0004284]
[1737321788832,0.45666998,105660.0,105650.0,0.0004284]
[1737321789056,0.36967649,105660.0,105650.0,0.0004284]
[1737321792131,0.38903788,105660.0,105650.0,0.0004284]
[1737321792813,0.48903788,105660.0,105650.0,0.0004284]
[1737321793017,0.57133788,105660.0,105650.0,0.0004284]
[1737321794040,0.36603788,105660.0,105650.0,0.0004284]
[1737321794230,0.267652,105650.0,105640.0,0.08056]
[1737321794428,0.36216549,105650.0,105640.0,0.08352085]
[1737321794634,0.36216549,105650.0,105640.0,0.00302085]
[1737321794848,0.36216549,105650.0,105640.0,0.00031868]
[1737321795461,0.36216549,105650.0,105640.0,0.02576338]
[1737321795462,0.21216549,105650.0,105640.0,0.02576338]
[1737321795674,0.2133488,105650.0,105640.0,0.02576338]
[1737321795878,0.2133488,105650.0,105640.0,0.02872422]
[1737321796690,0.2133488,105650.0,105640.0,0.03346151]
[1737321797342,0.21216549,105650.0,105640.0,0.03346151]
[1737321798236,0.21334879,105650.0,105640.0,0.03346151]
[1737321798469,0.2133488,105650.0,105640.0,0.03346151]
[1737321798684,0.21216549,105650.0,105640.0,0.03346151]
[1737321798903,0.21334879,105650.0,105640.0,0.03346151]
[1737321799597,0.094647,105660.0,105650.0,0.1989967]
[1737321799858,0.18916049,105660.0,105650.0,0.1989967]
[1737321800273,0.09451349,105660.0,105650.0,0.1989967]
[1737321800478,0.09451349,105660.0,105650.0,0.2487967]
[1737321800703,0.09451349,105660.0,105650.0,0.25649483]
[1737321801120,0.09383391,105660.0,105650.0,0.25649483]
[1737321801347,0.28440824,105670.0,105660.0,0.1200877]
[1737321801580,0.37892173,105670.0,105660.0,0.1200877]
[1737321801770,0.40192173,105670.0,105660.0,0.12304854]
[1737321801997,0.40192173,105670.0,105660.0,0.02840554]
[1737321803546,0.40192173,105670.0,105660.0,0.12304854]
[1737321803794,0.00049824,105670.0,105660.0,0.20194854]
[1737321804739,0.00049824,105670.0,105660.0,0.61338847]
[1737321804981,0.00049824,105670.0,105660.0,0.25174854]
[1737321805223,0.00049824,105670.0,105660.0,0.22630384]
[1737321805710,0.00049824,105670.0,105660.0,0.25174854]
[1737321805712,0.18964573,105670.0,105660.0,0.25174854]
[1737321805957,0.18964573,105670.0,105660.0,0.22630384]
[1737321806197,0.18964573,105670.0,105660.0,0.25174854]
[1737321806669,0.18964573,105670.0,105660.0,0.20194854]
[1737321807435,0.18964573,105670.0,105660.0,0.10730554]
[1737321807644,0.18964573,105670.0,105660.0,0.20194854]
[1737321808063,0.18964573,105670.0,105660.0,0.17650384]
[1737321808266,0.18964573,105670.0,105660.0,0.20194854]
[1737321808466,0.21315001,105680.0,105670.0,0.0254447]
[1737321808672,0.4022885,105680.0,105670.0,0.02559472]
[1737321809078,0.00089901,105680.0,105670.0,0.20162872]
[1737321809481,0.00089901,105680.0,105670.0,0.20458956]
[1737321809910,0.00049901,105680.0,105670.0,0.20458956]
[1737321810137,0.00049901,105680.0,105670.0,0.20484832]
[1737321811191,0.09512401,105680.0,105670.0,0.20484832]
[1737321811846,0.28378616,105690.0,105680.0,0.0254447]
[1737321812014,0.40129965,105690.0,105680.0,0.02570347]
[1737321813354,0.40129965,105690.0,105680.0,0.02769431]
[1737321814004,0.55129965,105690.0,105680.0,0.00296084]
[1737321814213,0.78209965,105690.0,105680.0,0.00296084]
[1737321814424,0.348425,105680.0,105670.0,0.00015002]
[1737321814629,0.44293849,105680.0,105670.0,0.00015002]
[1737321815288,0.34293849,105680.0,105670.0,0.00015002]
[1737321817438,0.61820502,105680.0,105670.0,0.00015002]
[1737321817662,1.55221851,105680.0,105670.0,0.00015002]
[1737321817869,1.42695198,105680.0,105670.0,0.00015002]
[1737321818337,1.44628715,105680.0,105670.0,0.00015002]
[1737321818544,2.14628715,105680.0,105670.0,0.00015002]
[1737321818996,2.39868641,105680.0,105670.0,0.00015002]
[1737321819407,2.41644848,105680.0,105670.0,0.00015002]
[1737321820131,2.44799839,105680.0,105670.0,0.00015002]
[1737321820523,0.094652,105650.0,105640.0,0.00344889]
[1737321820731,0.19034886,105650.0,105640.0,0.00344889]
[1737321822017,0.19034886,105650.0,105640.0,0.0004882]
[1737321822335,0.56880687,105650.0,105640.0,0.0004882]
[1737321822477,0.5676235,105650.0,105640.0,0.0004882]
[1737321823343,0.49393343,105650.0,105640.0,0.0004882]
[1737321823519,0.49941994,105650.0,105640.0,0.0004882]
[1737321824635,0.6676235,105650.0,105640.0,0.0004882]
[1737321825683,0.88830228,105650.0,105640.0,0.0004882]
[1737321826303,0.9073295,105650.0,105640.0,0.0004882]
[1737321826725,0.094661,105640.0,105630.0,0.0002]
[1737321826932,0.19035797,105640.0,105630.0,0.0002]
[1737321827308,0.19035797,105640.0,105630.0,0.00316102]
[1737321827891,0.27460107,105640.0,105630.0,0.00316102]
[1737321828092,0.27341759,105640.0,105630.0,0.00316102]
[1737321828885,0.27341759,105640.0,105630.0,0.02789449]
[1737321829101,0.27341759,105640.0,105630.0,0.00316102]
[1737321831526,0.47365764,105640.0,105630.0,0.00316102]
[1737321831738,0.73574317,105640.0,105620.0,0.00020222]
[1737321831945,0.34036716,105630.0,105620.0,0.00020222]
[1737321832167,0.0759,105620.0,105610.0,0.0004285]
[1737321832373,0.26509249,105620.0,105610.0,0.0004285]
[1737321833544,0.18919249,105620.0,105610.0,0.0004285]
[1737321833759,0.1903762,105620.0,105610.0,0.0004285]
[1737321833902,0.19037615,105620.0,105610.0,0.0951165]
[1737321834271,0.09451349,105620.0,105610.0,0.1723165]
[1737321834803,0.30278918,105640.0,105620.0,0.49810747]
[1737321834986,0.79451349,105630.0,105620.0,0.30875147]
[1737321835216,0.09451349,105630.0,105620.0,0.30875147]
[1737321835438,0.59811176,105630.0,105620.0,0.30875147]
[1737321836505,0.50359827,105630.0,105620.0,0.30875147]
[1737321836764,0.0839783,105640.0,105630.0,0.26940347]
[1737321836961,0.0839783,105640.0,105630.0,0.4257699]
[1737321837601,0.0839783,105640.0,105630.0,0.36412997]
[1737321838037,0.00014132,105640.0,105630.0,0.36412997]
[1737321838883,0.18931581,105640.0,105630.0,0.11945997]
[1737321839122,0.18931581,105640.0,105620.0,0.171878]
[1737321839329,0.37982513,105640.0,105620.0,0.2272]
[1737321839538,0.37864181,105640.0,105620.0,0.321878]
[1737321839749,0.37864181,105640.0,105620.0,0.10236177]
[1737321839750,0.28397781,105640.0,105620.0,0.10236177]
[1737321839972,0.09465481,105640.0,105620.0,0.19703977]
[1737321840182,0.09465481,105640.0,105630.0,0.02473347]
[1737321840399,0.09467,105630.0,105620.0,0.0004283]
[1737321840630,0.18918349,105630.0,105620.0,0.0004283]
[1737321840836,0.28918349,105630.0,105620.0,0.0004283]
[1737321841042,0.31218349,105630.0,105620.0,0.0004283]
[1737321841447,0.18918349,105630.0,105620.0,0.0004283]
[1737321841651,0.19036713,105630.0,105620.0,0.0004283]
[1737321841859,0.19036702,105630.0,105620.0,0.0004283]
[1737321843118,0.34036702,105630.0,105620.0,0.0004283]
[1737321843319,0.33918349,105630.0,105620.0,0.0004283]
[1737321845237,0.33918349,105630.0,105620.0,0.00338974]
[1737321847135,0.33418349,105630.0,105620.0,0.00338974]
[1737321851259,0.33418349,105630.0,105620.0,0.0004283]
[1737321852883,0.09764044,105620.0,105610.0,0.02516197]
[1737321853098,0.19215393,105620.0,105610.0,0.02516197]
[1737321853913,0.09747493,105620.0,105610.0,0.02516197]
[1737321854114,0.00296144,105620.0,105610.0,0.3142899]
[1737321854513,0.00296144,105620.0,105610.0,0.25264997]
[1737321854719,0.00296144,105620.0,105610.0,0.26212597]
[1737321855293,0.00296144,105620.0,105610.0,0.1875925]
[1737321855500,0.00296144,105620.0,105610.0,0.21232597]
[1737321858100,0.19215393,105620.0,105610.0,0.0929045]
[1737321858304,0.19215393,105620.0,105610.0,0.10755375]
[1737321858508,0.19215393,105620.0,105610.0,0.01286575]
[1737321859044,0.19215393,105620.0,105610.0,0.10755375]
[1737321859271,0.19215393,105620.0,105610.0,0.13228722]
[1737321859480,0.19215393,105620.0,105610.0,0.10755375]
[1737321859895,0.18919249,105620.0,105610.0,0.10755375]
[1737321860548,0.18919249,105620.0,105610.0,0.03759922]
[1737321862381,0.18919249,105620.0,105610.0,0.13228722]
[1737321862579,0.18919249,105620.0,105610.0,0.03759922]
[1737321863014,0.27302947,105620.0,105610.0,0.03759922]
[1737321863209,0.27302947,105620.0,105610.0,0.13228722]
[1737321864062,0.18919249,105620.0,105610.0,0.13228722]
[1737321865151,0.09451349,105620.0,105610.0,0.13228722]
[1737321865353,0.09541292,105620.0,105610.0,0.13228722]
[1737321865557,0.09557843,105620.0,105610.0,0.13228722]
[1737321865765,0.09557843,105620.0,105610.0,0.03759922]
[1737321866529,0.09557843,105620.0,105610.0,0.13228722]
[1737321866927,0.09557843,105620.0,105610.0,0.03759922]
[1737321867156,0.09557843,105620.0,105610.0,0.13228722]
[1737321867483,0.09557843,105620.0,105610.0,0.03759922]
[1737321868253,0.19009192,105620.0,105610.0,0.03759922]
[1737321868469,0.19127541,105620.0,105610.0,0.03759922]
[1737321868895,0.19009192,105620.0,105610.0,0.03759922]
[1737321869280,0.19009192,105620.0,105610.0,0.01286575]
[1737321869281,0.51378899,105620.0,105610.0,0.01286575]
[1737321869457,0.41809192,105620.0,105610.0,0.01286575]
[1737321869901,0.84479456,105620.0,105610.0,0.01286575]
[1737321870146,1.16779456,105620.0,105610.0,0.01286575]
[1737321870315,0.87651456,105620.0,105610.0,7.5e-07]
[1737321870469,0.97102805,105620.0,105610.0,7.5e-07]
[1737321870666,0.52626653,105610.0,105600.0,0.0165385]
[1737321870870,0.71546802,105610.0,105600.0,0.0165385]
[1737321871296,0.72418802,105610.0,105600.0,0.0165385]
[1737321871500,1.42418802,105610.0,105600.0,0.0165385]
[1737321871717,1.59253498,105610.0,105600.0,0.0164985]
[1737321871894,1.59253498,105610.0,105600.0,5e-07]
[1737321872107,1.62895095,105610.0,105600.0,5e-07]
[1737321872324,1.32895095,105610.0,105600.0,5e-07]
[1737321872481,0.73121197,105600.0,105590.0,2e-07]
[1737321872680,1.71972895,105600.0,105590.0,2e-07]
[1737321872927,0.47097153,105590.0,105580.0,9e-07]
[1737321873126,0.53445446,105590.0,105580.0,9e-07]
[1737321873672,1.26225102,105590.0,105580.0,1.4e-07]
[1737321874072,0.68212997,105580.0,105570.0,0.0006281]
[1737321874275,0.87115695,105580.0,105570.0,0.0006281]
[1737321874971,0.49298953,105570.0,105560.0,0.0004281]
[1737321875236,0.39299853,105560.0,105550.0,0.001]
[1737321875439,0.54300753,105550.0,105540.0,0.0004281]
[1737321875644,0.64624102,105550.0,105540.0,0.0004281]
[1737321875853,0.74075451,105550.0,105540.0,0.0004281]
[1737321876051,0.74075451,105550.0,105520.0,0.00474166]
[1737321876052,0.344759,105530.0,105520.0,0.00283804]
[1737321876260,0.54027249,105530.0,105520.0,0.00283804]
[1737321876470,0.12526653,105520.0,105510.0,0.00058834]
[1737321876677,0.54304353,105510.0,105500.0,0.00256]
[1737321876883,0.88207051,105510.0,105500.0,0.00256]
[1737321877086,0.88207051,105510.0,105480.0,0.07212737]
[1737321877087,0.194795,105490.0,105480.0,0.07062814]
[1737321877290,0.47221366,105490.0,105480.0,0.07062814]
[1737321877463,0.46602849,105490.0,105480.0,0.07062814]
[1737321878137,0.49129502,105490.0,105480.0,0.07062814]
[1737321878351,0.46054198,105490.0,105480.0,0.07062814]
[1737321878805,0.46054198,105490.0,105480.0,0.06830336]
[1737321879010,0.1491,105480.0,105470.0,0.0164682]
[1737321879231,0.544822,105460.0,105450.0,0.0102]
[1737321879435,0.33933549,105460.0,105450.0,0.0102]
[1737321879668,0.09451349,105460.0,105450.0,0.12976447]
[1737321879839,0.09569896,105460.0,105450.0,0.12976447]
[1737321880073,0.09451349,105460.0,105450.0,0.12976447]
[1737321880274,0.09451349,105460.0,105450.0,0.12975947]
[1737321880550,0.09451349,105460.0,105450.0,0.12990929]
[1737321880756,0.09451349,105460.0,105450.0,0.03508329]
[1737321880964,0.33933549,105460.0,105450.0,0.01034982]
[1737321882677,0.46460202,105460.0,105450.0,0.01034982]
[1737321882917,0.55911551,105460.0,105450.0,0.01034982]
[1737321883020,1.35911551,105460.0,105450.0,0.01034982]
[1737321883444,1.55684898,105460.0,105450.0,0.01034982]
[1737321883668,1.53484898,105460.0,105450.0,0.01034982]
[1737321884081,1.23484898,105460.0,105450.0,0.01034982]
[1737321884301,1.24356898,105460.0,105450.0,0.01034982]
[1737321884706,0.1,105420.0,105410.0,0.00593214]
[1737321884911,0.29809149,105420.0,105410.0,0.00608196]
[1737321885359,0.32109149,105420.0,105410.0,0.00608196]
[1737321885558,0.18937149,105420.0,105410.0,0.00311767]
[1737321885761,0.18937149,105420.0,105410.0,0.02473347]
[1737321885969,0.28424149,105420.0,105400.0,0.24858647]
[1737321886184,0.09451349,105420.0,105410.0,0.11959747]
[1737321886533,0.284562,105430.0,105420.0,0.02473347]
[1737321886534,0.094849,105430.0,105420.0,0.02473347]
[1737321886717,0.88936249,105430.0,105420.0,0.02473347]
[1737321886985,0.094867,105410.0,105400.0,0.05898272]
[1737321887235,0.28938049,105410.0,105390.0,0.02473347]
[1737321887444,0.43938949,105400.0,105390.0,0.02473347]
[1737321888305,0.384662,105390.0,105360.0,0.189812]
[1737321888507,0.094895,105380.0,105360.0,0.284716]
[1737321888712,0.28940849,105380.0,105360.0,0.284716]
[1737321888919,0.47919749,105380.0,105360.0,0.284716]
[1737321889375,0.66898749,105380.0,105350.0,0.474632]
[1737321889590,0.094912,105360.0,105350.0,6e-05]
[1737321889806,0.19451349,105360.0,105350.0,0.02473347]
[1737321890007,0.094905,105370.0,105360.0,0.02473347]
[1737321890008,0.479629,105370.0,105360.0,0.02473347]
[1737321890257,0.47922549,105370.0,105360.0,0.02473347]
[1737321891027,0.094921,105350.0,105330.0,0.414213]
[1737321891235,0.384756,105360.0,105350.0,0.02473347]
[1737321891442,0.66910649,105360.0,105330.0,0.414213]
[1737321891646,0.47926849,105360.0,105350.0,0.02473347]
[1737321891867,0.47926849,105360.0,105340.0,0.09493]
[1737321892069,0.47926849,105360.0,105350.0,0.02473347]
[1737321892487,0.094923,105350.0,105330.0,0.414208]
[1737321892896,0.57419149,105360.0,105340.0,0.02473347]
[1737321893102,0.19451349,105350.0,105300.0,0.12562933]
[1737321893298,0.384806,105340.0,105330.0,0.02473347]
[1737321893530,0.47931949,105340.0,105330.0,0.02473347]
[1737321893736,0.47932549,105340.0,105330.0,0.02473347]
[1737321893939,0.37932549,105340.0,105330.0,0.02473347]
[1737321894153,0.47932549,105340.0,105330.0,0.02473347]
[1737321894369,0.47931849,105340.0,105330.0,0.02473347]
[1737321894831,0.28944349,105340.0,105330.0,0.02473347]
[1737321895036,0.47930749,105340.0,105330.0,0.02473347]
[1737321896174,0.384781,105350.0,105340.0,0.02473347]
[1737321896413,0.47929449,105350.0,105340.0,0.02473347]
[1737321896580,0.47928849,105350.0,105340.0,0.02473347]
[1737321896990,0.39855411,105350.0,105340.0,0.02473347]
[1737321897187,0.284827,105330.0,105320.0,0.02473347]
[1737321897389,0.094946,105330.0,105320.0,0.02473347]
[1737321897816,0.094146,105330.0,105320.0,0.02473347]
[1737321898021,0.384809,105340.0,105330.0,0.02473347]
[1737321898230,0.47932249,105340.0,105330.0,0.02473347]
[1737321898550,0.094939,105330.0,105320.0,0.02770292]
[1737321898991,0.194939,105330.0,105320.0,0.02770292]
[1737321899411,0.28945249,105330.0,105320.0,0.02770292]
[1737321900796,0.38495781,105340.0,105320.0,0.12265092]
[1737321901011,0.4794713,105340.0,105330.0,0.02516287]
[1737321901218,1.1794713,105340.0,105330.0,0.02516287]
[1737321901841,1.0794713,105340.0,105330.0,0.0004294]
[1737321902054,1.1794713,105340.0,105330.0,0.0004294]
[1737321902273,0.5294713,105340.0,105330.0,0.0004294]
[1737321902518,0.094957,105310.0,105300.0,0.08799744]
[1737321902748,0.094957,105310.0,105300.0,0.08683097]
[1737321902951,0.18947049,105310.0,105300.0,0.07732816]
[1737321904014,0.33947049,105310.0,105300.0,0.05833516]
[1737321904224,1.46247049,105310.0,105300.0,0.00135616]
[1737321904427,1.41177049,105310.0,105300.0,0.00135616]
[1737321905136,1.08877049,105310.0,105300.0,0.00135616]
[1737321905334,0.88947049,105310.0,105300.0,0.00135616]
[1737321905971,1.03947049,105310.0,105300.0,0.00135616]
[1737321906201,1.23060565,105310.0,105300.0,0.00135616]
[1737321906411,1.23060565,105310.0,105280.0,0.02516197]
[1737321906412,0.094975,105290.0,105280.0,0.02516197]
[1737321906619,0.18948849,105290.0,105280.0,0.02516197]
[1737321907034,0.28948849,105290.0,105280.0,0.02516197]
[1737321907273,0.28944849,105290.0,105280.0,0.02516197]
[1737321907694,0.18959719,105290.0,105280.0,0.02345795]
[1737321907900,0.0001487,105290.0,105280.0,0.11844195]
[1737321908314,0.0001487,105290.0,105280.0,0.69964134]
[1737321908528,0.1,105330.0,105320.0,0.02345795]
[1737321908738,0.1,105330.0,105310.0,0.02345795]
[1737321908739,0.094948,105320.0,105310.0,0.02345795]
[1737321908945,0.194957,105310.0,105300.0,0.02345795]
[1737321909153,0.194966,105300.0,105290.0,0.02345795]
[1737321909355,0.094966,105300.0,105290.0,0.02345795]
[1737321909564,0.28947949,105300.0,105290.0,0.02345795]
[1737321909990,0.194975,105290.0,105280.0,0.00950281]
[1737321910210,0.28948849,105290.0,105280.0,0.03296076]
[1737321910636,0.094964,105310.0,105300.0,0.02345795]
[1737321910842,0.88947749,105310.0,105300.0,0.02345795]
[1737321911283,0.7,105310.0,105300.0,0.1189211]
[1737321911877,0.384863,105320.0,105310.0,0.02345795]
[1737321912051,0.98946649,105320.0,105310.0,0.02345795]
[1737321912256,0.384831,105330.0,105320.0,0.02345795]
[1737321912497,0.47934449,105330.0,105320.0,0.02345795]
[1737321912683,0.48024665,105330.0,105320.0,0.02345795]
[1737321913095,0.38024665,105330.0,105320.0,0.02345795]
[1737321913652,0.094948,105320.0,105310.0,0.03296076]
[1737321913869,0.28946149,105320.0,105310.0,0.00950281]
[1737321914075,0.18913722,105320.0,105310.0,0.00950281]
[1737321914687,0.194957,105310.0,105300.0,0.00049715]
[1737321914821,0.18947049,105310.0,105300.0,0.00049715]
[1737321915254,0.33947049,105310.0,105300.0,0.00049715]
[1737321915784,0.34867049,105310.0,105300.0,0.00822076]
[1737321915950,0.47521254,105310.0,105300.0,0.00822076]
[1737321916870,0.19867049,105310.0,105300.0,0.00822076]
[1737321917248,0.89867049,105310.0,105300.0,0.00822076]
[1737321917844,0.194975,105290.0,105280.0,0.0004296]
[1737321918046,0.28948849,105290.0,105280.0,0.0004296]
[1737321918258,0.18948849,105290.0,105280.0,0.0004296]
[1737321918667,0.88948849,105290.0,105280.0,0.0004296]
[1737321919644,0.98948849,105290.0,105280.0,0.0004296]
[1737321920260,0.88948849,105290.0,105280.0,0.02388755]
[1737321920467,0.88948849,105290.0,105280.0,0.08894029]
[1737321920468,0.7,105290.0,105280.0,0.08894029]
[1737321921097,0.10050129,105310.0,105280.0,0.09334295]
[1737321921271,0.00050129,105310.0,105300.0,0.094966]
[1737321921477,0.70050129,105310.0,105300.0,0.094966]
[1737321921863,0.79546029,105310.0,105290.0,0.474849]
[1737321922060,0.09546029,105310.0,105290.0,0.474849]
[1737321922274,0.094968,105300.0,105280.0,0.56941049]
[1737321922482,0.284928,105290.0,105270.0,0.601049]
[1737321922679,0.284928,105290.0,105270.0,0.411063]
[1737321922876,0.094984,105280.0,105270.0,0.0002]
[1737321923121,0.094984,105280.0,105270.0,0.095193]
[1737321923334,0.57442749,105290.0,105270.0,0.095193]
[1737321923335,0.47944749,105290.0,105270.0,0.095193]
[1737321923506,0.094984,105280.0,105270.0,0.0002]
[1737321925127,0.094984,105280.0,105270.0,0.0006281]
[1737321925351,0.66940749,105290.0,105270.0,0.0956211]
[1737321925575,0.66941049,105290.0,105270.0,0.0956211]
[1737321925826,0.094984,105280.0,105270.0,0.0956211]
[1737321926032,0.66940849,105290.0,105270.0,0.2856041]
[1737321926524,0.094984,105280.0,105270.0,0.0956211]
[1737321926730,0.66940949,105290.0,105270.0,0.0956211]
[1737321926855,0.094984,105280.0,105270.0,0.0956211]
[1737321927069,0.66940949,105290.0,105270.0,0.2856081]
[1737321927676,0.094984,105280.0,105270.0,0.2856081]
[1737321927932,0.66940949,105290.0,105270.0,0.2856081]
[1737321928164,0.18949749,105280.0,105270.0,0.0006281]
[1737321928312,0.28949749,105280.0,105270.0,0.0006281]
[1737321929087,0.574896,105290.0,105270.0,0.2856061]
[1737321929266,0.094984,105280.0,105270.0,0.0006281]
[1737321929677,0.284932,105290.0,105270.0,0.1906061]
[1737321929887,0.284932,105290.0,105270.0,0.47581427]
[1737321930167,0.189936,105300.0,105270.0,0.38082527]
[1737321930372,0.284934,105290.0,105270.0,0.57080127]
[1737321930639,0.37942149,105300.0,105280.0,0.189967]
[1737321930875,0.094972,105300.0,105280.0,0.474904]
[1737321931123,0.28491,105300.0,105280.0,0.379916]
[1737321931386,0.094984,105280.0,105270.0,0.04797027]
[1737321931623,0.094984,105280.0,105270.0,0.00087027]
[1737321931819,0.28949749,105280.0,105270.0,0.00087027]
[1737321933467,0.194993,105270.0,105260.0,0.0159198]
[1737321933669,0.28950649,105270.0,105260.0,0.0159198]
[1737321934089,0.094993,105270.0,105260.0,0.0159198]
[1737321934715,0.09549398,105270.0,105260.0,0.0159198]
[1737321936446,0.142602,105260.0,105250.0,8e-07]
[1737321936620,0.23711549,105260.0,105250.0,8e-07]
[1737321936821,0.38711549,105260.0,105250.0,8e-07]
[1737321937147,0.28951549,105260.0,105250.0,0.00297259]
[1737321937485,0.98951549,105260.0,105250.0,0.00297259]
[1737321938182,1.22892464,105260.0,105250.0,0.00297259]
[1737321938385,1.22892464,105260.0,105250.0,0.00293259]
[1737321938509,0.52892464,105260.0,105250.0,0.00293259]
[1737321938701,0.54037321,105260.0,105250.0,0.00293259]
[1737321938906,0.79007473,105260.0,105250.0,0.00293259]
[1737321939359,0.285072,105240.0,105220.0,0.1004654]
[1737321939528,0.66963149,105240.0,105220.0,0.2905404]
[1737321939709,0.095029,105230.0,105220.0,0.1004654]
[1737321940109,0.57460549,105240.0,105220.0,0.1004654]
[1737321940326,0.28507,105240.0,105220.0,0.1954934]
[1737321940530,0.28507,105240.0,105230.0,0.095029]
[1737321940531,0.095024,105240.0,105230.0,0.095029]
[1737321941009,0.00050067,105240.0,105230.0,0.095029]
[1737321941251,0.09552067,105240.0,105230.0,0.095029]
[1737321941459,0.08392511,105240.0,105230.0,0.095029]
[1737321942216,0.17894511,105240.0,105230.0,0.095029]
[1737321942424,0.00050067,105240.0,105230.0,0.095029]
[1737321943311,0.09501416,105240.0,105220.0,0.1004654]
[1737321943531,0.09501416,105240.0,105220.0,0.2905254]
[1737321943532,0.00050067,105240.0,105220.0,0.2905254]
[1737321943735,0.28954249,105230.0,105220.0,0.0054284]
[1737321943936,0.18954249,105230.0,105220.0,0.0054284]
[1737321944143,0.28954249,105230.0,105220.0,0.0054284]
[1737321944586,0.28954249,105230.0,105220.0,0.00533949]
[1737321945009,0.18954249,105230.0,105220.0,0.00533949]
[1737321945271,0.19073051,105230.0,105220.0,0.00533949]
[1737321945902,0.285244,105230.0,105220.0,0.00533949]
[1737321946111,0.28405598,105230.0,105220.0,0.00533949]
[1737321946538,0.18954249,105230.0,105220.0,0.00533949]
[1737321946740,0.19073062,105230.0,105220.0,0.00533949]
[1737321946961,0.34073062,105230.0,105220.0,0.00533949]
[1737321947166,0.47036693,105230.0,105220.0,0.00533949]
[1737321947798,1.17036693,105230.0,105220.0,0.00533949]
[1737321948016,1.26488042,105230.0,105220.0,0.00533949]
[1737321948231,1.17036693,105230.0,105220.0,0.00533949]
[1737321948453,1.50406995,105230.0,105220.0,0.00533949]
[1737321948582,1.67092303,105230.0,105220.0,0.00533949]
[1737321948801,1.52092303,105230.0,105220.0,0.00533949]
[1737321948999,0.285121,105220.0,105200.0,0.465786]
[1737321949211,1.57404454,105230.0,105210.0,0.095045]
[1737321949430,1.06359503,105230.0,105210.0,0.285139]